[Event "Betsys MČR v online bleskovém šachu 2021"]
[Site "Chess.com"]
[Date "2021.04.17"]
[Round "11"]
[White "Toman_26"]
[Black "feela1"]
[Result "1-0"]
[WhiteElo "1083"]
[BlackElo "1287"]
[TimeControl "180+1"]
[EndTime "10:51:12 PDT"]
[Termination "Uživatel Toman_26 zvítězil matem"]

1. e4 {[%clk 0:03:00.9]} 1... e5 {[%clk 0:02:59.9]} 2. Nf3 {[%clk 0:03:00.4]}
2... Nc6 {[%clk 0:02:58.6]} 3. d4 {[%clk 0:03:00.3]} 3... exd4 {[%clk
0:02:50.2]} 4. Nxd4 {[%clk 0:03:00.6]} 4... Nxd4 {[%clk 0:02:48.1]} 5. Qxd4
{[%clk 0:03:01.5]} 5... Qe7 {[%clk 0:02:40.1]} 6. Be2 {[%clk 0:02:56.8]} 6...
Qb4+ {[%clk 0:02:39.1]} 7. Qxb4 {[%clk 0:02:50.4]} 7... Bxb4+ {[%clk 0:02:38.7]}
8. c3 {[%clk 0:02:50.3]} 8... Bc5 {[%clk 0:02:37.3]} 9. O-O {[%clk 0:02:49.8]}
9... d6 {[%clk 0:02:33.4]} 10. Re1 {[%clk 0:02:37]} 10... Ne7 {[%clk 0:02:32.3]}
11. Bc4 {[%clk 0:02:35]} 11... O-O {[%clk 0:02:31.3]} 12. Be3 {[%clk 0:02:34.7]}
12... Bxe3 {[%clk 0:02:29.1]} 13. Rxe3 {[%clk 0:02:35.6]} 13... Ng6 {[%clk
0:02:27]} 14. Nd2 {[%clk 0:02:32.7]} 14... Re8 {[%clk 0:02:26.7]} 15. Rae1
{[%clk 0:02:29.5]} 15... Bd7 {[%clk 0:02:25.1]} 16. Nf3 {[%clk 0:02:27.9]} 16...
Bg4 {[%clk 0:02:23.7]} 17. Ng5 {[%clk 0:02:23.8]} 17... Re7 {[%clk 0:02:15.4]}
18. h3 {[%clk 0:02:21.3]} 18... Bd7 {[%clk 0:02:12]} 19. Nf3 {[%clk 0:01:58.9]}
19... Rae8 {[%clk 0:02:07.4]} 20. Bb3 {[%clk 0:01:47.5]} 20... c6 {[%clk
0:01:58.7]} 21. Nd2 {[%clk 0:01:32.7]} 21... Ne5 {[%clk 0:01:56.5]} 22. Nf3
{[%clk 0:01:26.8]} 22... Nxf3+ {[%clk 0:01:54.6]} 23. Rxf3 {[%clk 0:01:27.1]}
23... Be6 {[%clk 0:01:45.8]} 24. Bxe6 {[%clk 0:01:24.5]} 24... Rxe6 {[%clk
0:01:45.1]} 25. Rfe3 {[%clk 0:01:21.6]} 25... h6 {[%clk 0:01:41.1]} 26. f3
{[%clk 0:01:21.2]} 26... a6 {[%clk 0:01:39.4]} 27. Rd3 {[%clk 0:01:17.4]} 27...
d5 {[%clk 0:01:34.4]} 28. Rde3 {[%clk 0:00:56.8]} 28... dxe4 {[%clk 0:01:33.4]}
29. Rxe4 {[%clk 0:00:56.1]} 29... Rxe4 {[%clk 0:01:31.5]} 30. Rxe4 {[%clk
0:00:55.7]} 30... Rxe4 {[%clk 0:01:30.5]} 31. fxe4 {[%clk 0:00:56.6]} 31... Kf8
{[%clk 0:01:30.3]} 32. Kf2 {[%clk 0:00:56.7]} 32... Ke7 {[%clk 0:01:30.1]} 33.
Ke3 {[%clk 0:00:57.2]} 33... Ke6 {[%clk 0:01:29.9]} 34. Kd4 {[%clk 0:00:57.3]}
34... Kd6 {[%clk 0:01:28.4]} 35. c4 {[%clk 0:00:54.6]} 35... b5 {[%clk
0:01:25.7]} 36. c5+ {[%clk 0:00:53.2]} 36... Kd7 {[%clk 0:01:22.6]} 37. b4
{[%clk 0:00:48.1]} 37... f6 {[%clk 0:01:21.8]} 38. g4 {[%clk 0:00:47]} 38... g6
{[%clk 0:01:15.1]} 39. e5 {[%clk 0:00:45.5]} 39... f5 {[%clk 0:01:05.4]} 40.
gxf5 {[%clk 0:00:40.1]} 40... gxf5 {[%clk 0:01:04.8]} 41. Ke3 {[%clk 0:00:40]}
41... Ke6 {[%clk 0:01:04.3]} 42. Kf4 {[%clk 0:00:40]} 42... h5 {[%clk
0:00:58.3]} 43. h4 {[%clk 0:00:34.6]} 43... Kd5 {[%clk 0:00:36.7]} 44. Kxf5
{[%clk 0:00:34.7]} 44... Kc4 {[%clk 0:00:36.9]} 45. e6 {[%clk 0:00:34.8]} 45...
Kxb4 {[%clk 0:00:37.1]} 46. e7 {[%clk 0:00:35.2]} 46... Ka4 {[%clk 0:00:37.3]}
47. e8=Q {[%clk 0:00:34.9]} 47... a5 {[%clk 0:00:36.3]} 48. Qxc6 {[%clk
0:00:32.5]} 48... Kb4 {[%clk 0:00:32.2]} 49. Ke4 {[%clk 0:00:22.9]} 49... a4
{[%clk 0:00:31.3]} 50. Qd5 {[%clk 0:00:21.2]} 50... Ka3 {[%clk 0:00:29.9]} 51.
Qd3+ {[%clk 0:00:19.9]} 51... Kb4 {[%clk 0:00:29.4]} 52. Qd2+ {[%clk 0:00:20.1]}
52... Ka3 {[%clk 0:00:29.1]} 53. Qc1+ {[%clk 0:00:20.3]} 53... Kb4 {[%clk
0:00:27.9]} 54. Qb1+ {[%clk 0:00:20.5]} 54... Ka5 {[%clk 0:00:27.2]} 55. Qb2
{[%clk 0:00:20]} 55... b4 {[%clk 0:00:25.9]} 56. c6 {[%clk 0:00:19.5]} 56... a3
{[%clk 0:00:24.9]} 57. Qb3 {[%clk 0:00:19.8]} 57... Kb5 {[%clk 0:00:23.6]} 58.
Kd5 {[%clk 0:00:19.2]} 58... Ka5 {[%clk 0:00:22.3]} 59. c7 {[%clk 0:00:19.3]}
59... Kb5 {[%clk 0:00:21.9]} 60. c8=Q {[%clk 0:00:19.2]} 60... Ka5 {[%clk
0:00:21]} 61. Qc5+ {[%clk 0:00:19.3]} 61... Ka6 {[%clk 0:00:20.6]} 62. Qc6+
{[%clk 0:00:18.7]} 62... Ka5 {[%clk 0:00:20.3]} 63. Qxb4+ {[%clk 0:00:18.7]}
63... Kxb4 {[%clk 0:00:10.3]} 64. Qc4+ {[%clk 0:00:19]} 64... Ka5 {[%clk
0:00:09.7]} 65. Qb3 {[%clk 0:00:19.1]} 65... Ka6 {[%clk 0:00:09]} 66. Kc6 {[%clk
0:00:19.2]} 66... Ka5 {[%clk 0:00:07.8]} 67. Qb5# {[%clk 0:00:19.2]} 1-0

[Event "Betsys MČR v online bleskovém šachu 2021"]
[Site "Chess.com"]
[Date "2021.04.17"]
[Round "11"]
[White "petr812"]
[Black "tudlenudle"]
[Result "1-0"]
[WhiteElo "2124"]
[BlackElo "1945"]
[TimeControl "180+1"]
[EndTime "10:51:14 PDT"]
[Termination "Uživatel petr812 zvítězil matem"]

1. e4 {[%clk 0:03:00.9]} 1... e5 {[%clk 0:03:00.3]} 2. f4 {[%clk 0:02:57.4]}
2... exf4 {[%clk 0:02:58.2]} 3. Nf3 {[%clk 0:02:57.1]} 3... Nf6 {[%clk
0:02:58.5]} 4. Nc3 {[%clk 0:02:55.9]} 4... d5 {[%clk 0:02:55.2]} 5. e5 {[%clk
0:02:55.8]} 5... Ne4 {[%clk 0:02:52.7]} 6. d4 {[%clk 0:02:53.9]} 6... Bb4 {[%clk
0:02:49.2]} 7. Bd2 {[%clk 0:02:47.7]} 7... Nxd2 {[%clk 0:02:38.2]} 8. Qxd2
{[%clk 0:02:47.1]} 8... O-O {[%clk 0:02:30.3]} 9. Bd3 {[%clk 0:02:43.7]} 9... c5
{[%clk 0:02:26.5]} 10. a3 {[%clk 0:02:35.5]} 10... Ba5 {[%clk 0:02:24.1]} 11.
dxc5 {[%clk 0:02:24.5]} 11... d4 {[%clk 0:02:23.1]} 12. Nxd4 {[%clk 0:02:24]}
12... Qh4+ {[%clk 0:02:16.8]} 13. Qf2 {[%clk 0:02:19.3]} 13... Qxf2+ {[%clk
0:02:13.3]} 14. Kxf2 {[%clk 0:02:18.6]} 14... Bxc3 {[%clk 0:02:04.4]} 15. bxc3
{[%clk 0:02:17.8]} 15... Nd7 {[%clk 0:02:04.8]} 16. Ne2 {[%clk 0:02:13]} 16...
g5 {[%clk 0:01:56]} 17. c6 {[%clk 0:02:05.7]} 17... Nxe5 {[%clk 0:01:55]} 18.
cxb7 {[%clk 0:02:02.6]} 18... Bxb7 {[%clk 0:01:51.9]} 19. Rhe1 {[%clk
0:02:00.9]} 19... Rfe8 {[%clk 0:01:44.6]} 20. h3 {[%clk 0:01:58.8]} 20... Rad8
{[%clk 0:01:40.2]} 21. Nd4 {[%clk 0:01:55.8]} 21... h6 {[%clk 0:01:27.2]} 22.
Rad1 {[%clk 0:01:51.5]} 22... Nxd3+ {[%clk 0:01:15.6]} 23. cxd3 {[%clk
0:01:48.6]} 23... Rxe1 {[%clk 0:01:11.4]} 24. Rxe1 {[%clk 0:01:48]} 24... Ba6
{[%clk 0:00:58.9]} 25. Rd1 {[%clk 0:01:45]} 25... Rc8 {[%clk 0:00:53]} 26. c4
{[%clk 0:01:42.9]} 26... Rd8 {[%clk 0:00:49.6]} 27. Nf5 {[%clk 0:01:36.9]} 27...
Bxc4 {[%clk 0:00:45.4]} 28. d4 {[%clk 0:01:30.6]} 28... Kh7 {[%clk 0:00:40.5]}
29. h4 {[%clk 0:01:21.1]} 29... Be6 {[%clk 0:00:38.9]} 30. Ne7 {[%clk
0:01:14.8]} 30... Bd5 {[%clk 0:00:33.3]} 31. hxg5 {[%clk 0:01:05]} 31... hxg5
{[%clk 0:00:34.2]} 32. Rh1+ {[%clk 0:00:54.6]} 32... Kg7 {[%clk 0:00:34.4]} 33.
Rc1 {[%clk 0:00:49.8]} 33... Kf6 {[%clk 0:00:31.1]} 34. Nc8 {[%clk 0:00:47.3]}
34... Bb7 {[%clk 0:00:24.1]} 35. Nxa7 {[%clk 0:00:45.1]} 35... Rxd4 {[%clk
0:00:19]} 36. Rc2 {[%clk 0:00:43]} 36... Rd3 {[%clk 0:00:18.3]} 37. Nb5 {[%clk
0:00:40]} 37... Rg3 {[%clk 0:00:16.2]} 38. Kf1 {[%clk 0:00:25.3]} 38... Ba6
{[%clk 0:00:14.5]} 39. Rc6+ {[%clk 0:00:24.8]} 39... Kf5 {[%clk 0:00:12.4]} 40.
Rxa6 {[%clk 0:00:24.8]} 40... g4 {[%clk 0:00:11.6]} 41. Rc6 {[%clk 0:00:22.5]}
41... f3 {[%clk 0:00:09.8]} 42. gxf3 {[%clk 0:00:22.3]} 42... Rxf3+ {[%clk
0:00:10]} 43. Kg2 {[%clk 0:00:21.3]} 43... Re3 {[%clk 0:00:07.2]} 44. Nd4+
{[%clk 0:00:20.8]} 44... Ke4 {[%clk 0:00:07.1]} 45. Nc2 {[%clk 0:00:20.4]} 45...
Re2+ {[%clk 0:00:06.5]} 46. Kg3 {[%clk 0:00:20.4]} 46... f5 {[%clk 0:00:05.6]}
47. Rc4+ {[%clk 0:00:20]} 47... Kd3 {[%clk 0:00:05]} 48. Rc8 {[%clk 0:00:18.6]}
48... Rxc2 {[%clk 0:00:05.4]} 49. Rxc2 {[%clk 0:00:16.8]} 49... Kxc2 {[%clk
0:00:04.9]} 50. a4 {[%clk 0:00:17]} 50... Kd3 {[%clk 0:00:04.6]} 51. a5 {[%clk
0:00:15.2]} 51... Ke4 {[%clk 0:00:05.2]} 52. a6 {[%clk 0:00:15.2]} 52... f4+
{[%clk 0:00:05.9]} 53. Kxg4 {[%clk 0:00:14.9]} 53... f3 {[%clk 0:00:06.4]} 54.
a7 {[%clk 0:00:14.4]} 54... f2 {[%clk 0:00:06.2]} 55. a8=Q+ {[%clk 0:00:12.5]}
55... Ke3 {[%clk 0:00:06.8]} 56. Qe8+ {[%clk 0:00:12.1]} 56... Kd2 {[%clk
0:00:06.8]} 57. Qd7+ {[%clk 0:00:09.3]} 57... Ke1 {[%clk 0:00:06.7]} 58. Qe6+
{[%clk 0:00:09.2]} 58... Kf1 {[%clk 0:00:03.5]} 59. Kf3 {[%clk 0:00:08.2]} 59...
Kg1 {[%clk 0:00:03]} 60. Qg4+ {[%clk 0:00:07.6]} 60... Kh1 {[%clk 0:00:03.3]}
61. Qg2# {[%clk 0:00:07.1]} 1-0

[Event "Betsys MČR v online bleskovém šachu 2021"]
[Site "Chess.com"]
[Date "2021.04.17"]
[Round "11"]
[White "jsulc"]
[Black "vit_rosenbaum"]
[Result "0-1"]
[WhiteElo "2076"]
[BlackElo "2262"]
[TimeControl "180+1"]
[EndTime "10:51:15 PDT"]
[Termination "Uživatel vit_rosenbaum zvítězil na čas"]

1. d4 {[%clk 0:02:58.6]} 1... e6 {[%clk 0:02:57.1]} 2. Nf3 {[%clk 0:02:53.3]}
2... c5 {[%clk 0:02:57.1]} 3. c3 {[%clk 0:02:52.2]} 3... Nf6 {[%clk 0:02:56.8]}
4. Nbd2 {[%clk 0:02:51]} 4... d5 {[%clk 0:02:56.9]} 5. e3 {[%clk 0:02:51.2]}
5... Nc6 {[%clk 0:02:57.3]} 6. Bd3 {[%clk 0:02:51.6]} 6... Bd6 {[%clk
0:02:54.3]} 7. O-O {[%clk 0:02:49.5]} 7... b6 {[%clk 0:02:52.3]} 8. Re1 {[%clk
0:02:45.5]} 8... O-O {[%clk 0:02:51.8]} 9. dxc5 {[%clk 0:02:44.1]} 9... Bxc5
{[%clk 0:02:48.1]} 10. e4 {[%clk 0:02:27.9]} 10... dxe4 {[%clk 0:02:45]} 11.
Nxe4 {[%clk 0:02:28.8]} 11... Nxe4 {[%clk 0:02:44.7]} 12. Bxe4 {[%clk
0:02:29.6]} 12... Qxd1 {[%clk 0:02:44]} 13. Rxd1 {[%clk 0:02:30.5]} 13... Bb7
{[%clk 0:02:39.4]} 14. Bf4 {[%clk 0:02:29.4]} 14... Rfd8 {[%clk 0:02:37]} 15.
Bc7 {[%clk 0:02:26.3]} 15... Rdc8 {[%clk 0:02:14.3]} 16. Rd7 {[%clk 0:02:23.1]}
16... Na5 {[%clk 0:02:11.2]} 17. Bxb7 {[%clk 0:02:16]} 17... Nxb7 {[%clk
0:02:10.3]} 18. Bxb6 {[%clk 0:02:11.2]} 18... Bxb6 {[%clk 0:02:01.1]} 19. Rxb7
{[%clk 0:02:10.8]} 19... Rd8 {[%clk 0:02:01.7]} 20. Kf1 {[%clk 0:02:08.4]} 20...
Rd5 {[%clk 0:01:58.3]} 21. Ke2 {[%clk 0:02:06.5]} 21... Rad8 {[%clk 0:01:57.9]}
22. a4 {[%clk 0:02:00.4]} 22... g5 {[%clk 0:01:46.6]} 23. a5 {[%clk 0:01:59.9]}
23... Bxa5 {[%clk 0:01:46.1]} 24. Rxa7 {[%clk 0:01:58.7]} 24... Bb6 {[%clk
0:01:46]} 25. Ra8 {[%clk 0:01:57.8]} 25... g4 {[%clk 0:01:37.1]} 26. Rxd8+
{[%clk 0:01:54.5]} 26... Bxd8 {[%clk 0:01:26.4]} 27. Nd4 {[%clk 0:01:43.6]}
27... Bf6 {[%clk 0:01:16.3]} 28. Rd1 {[%clk 0:01:19.7]} 28... h5 {[%clk
0:01:14.4]} 29. Nc2 {[%clk 0:01:10.4]} 29... Rb5 {[%clk 0:01:09.7]} 30. Nb4
{[%clk 0:01:04]} 30... Be7 {[%clk 0:00:57.7]} 31. Nd3 {[%clk 0:01:03.7]} 31...
Bf6 {[%clk 0:00:52.9]} 32. f3 {[%clk 0:01:01.1]} 32... gxf3+ {[%clk 0:00:50.7]}
33. gxf3 {[%clk 0:01:02]} 33... Kh7 {[%clk 0:00:50.6]} 34. Kd2 {[%clk
0:00:59.6]} 34... Bg5+ {[%clk 0:00:45.6]} 35. Kc2 {[%clk 0:00:58.3]} 35... Rf5
{[%clk 0:00:42.9]} 36. b4 {[%clk 0:00:47.7]} 36... Rxf3 {[%clk 0:00:41.8]} 37.
b5 {[%clk 0:00:47.9]} 37... Be3 {[%clk 0:00:40.1]} 38. c4 {[%clk 0:00:45.8]}
38... Rh3 {[%clk 0:00:38.7]} 39. c5 {[%clk 0:00:44.6]} 39... Rxh2+ {[%clk
0:00:38.9]} 40. Kb3 {[%clk 0:00:44.9]} 40... Rg2 {[%clk 0:00:32.5]} 41. b6
{[%clk 0:00:42.1]} 41... Rg8 {[%clk 0:00:30.2]} 42. b7 {[%clk 0:00:41.2]} 42...
f5 {[%clk 0:00:26.7]} 43. c6 {[%clk 0:00:40.5]} 43... Bb6 {[%clk 0:00:25.3]} 44.
Re1 {[%clk 0:00:36.1]} 44... Re8 {[%clk 0:00:23.7]} 45. Ne5 {[%clk 0:00:26.8]}
45... Bc7 {[%clk 0:00:22.1]} 46. Kc4 {[%clk 0:00:24.7]} 46... Kg7 {[%clk
0:00:17.8]} 47. Rg1+ {[%clk 0:00:22.2]} 47... Kf6 {[%clk 0:00:17.8]} 48. Nd7+
{[%clk 0:00:21.3]} 48... Ke7 {[%clk 0:00:17.8]} 49. Rh1 {[%clk 0:00:18]} 49...
Kd6 {[%clk 0:00:18]} 50. Rxh5 {[%clk 0:00:13.5]} 50... Kxc6 {[%clk 0:00:17.9]}
51. Nf6 {[%clk 0:00:13.6]} 51... Rd8 {[%clk 0:00:16.9]} 52. Rh6 {[%clk
0:00:11.5]} 52... Kxb7 {[%clk 0:00:16.9]} 53. Nh5 {[%clk 0:00:11.1]} 53... e5
{[%clk 0:00:17]} 54. Rf6 {[%clk 0:00:09.9]} 54... Rd4+ {[%clk 0:00:16.8]} 55.
Kc3 {[%clk 0:00:09.3]} 55... f4 {[%clk 0:00:14.7]} 56. Ng7 {[%clk 0:00:08.3]}
56... Ba5+ {[%clk 0:00:13.6]} 57. Kb3 {[%clk 0:00:06.8]} 57... Rb4+ {[%clk
0:00:12.9]} 58. Kc2 {[%clk 0:00:06.3]} 58... Rb6 {[%clk 0:00:13.1]} 59. Rf5
{[%clk 0:00:05.2]} 59... Rb5 {[%clk 0:00:12.1]} 60. Ne6 {[%clk 0:00:04.4]} 60...
Bc7 {[%clk 0:00:09.7]} 61. Nxf4 {[%clk 0:00:03.2]} 61... Rc5+ {[%clk 0:00:10]}
62. Kd3 {[%clk 0:00:02.6]} 62... Rc6 {[%clk 0:00:09.8]} 63. Ne2 {[%clk
0:00:01.1]} 63... Rd6+ {[%clk 0:00:10]} 64. Ke3 {[%clk 0:00:01.3]} 64... Kc6
{[%clk 0:00:09.6]} 65. Ke4 {[%clk 0:00:01.4]} 65... Rd2 {[%clk 0:00:09.5]} 66.
Nc3 {[%clk 0:00:01.1]} 66... Rc2 {[%clk 0:00:09.1]} 0-1

[Event "Betsys MČR v online bleskovém šachu 2021"]
[Site "Chess.com"]
[Date "2021.04.17"]
[Round "11"]
[White "Trickov"]
[Black "JakubPulpan"]
[Result "0-1"]
[WhiteElo "2413"]
[BlackElo "2714"]
[TimeControl "180+1"]
[EndTime "10:51:23 PDT"]
[Termination "Uživatel JakubPulpan zvítězil na čas"]

1. d4 {[%clk 0:02:58.5]} 1... Nf6 {[%clk 0:03:00.4]} 2. Nf3 {[%clk 0:02:57.8]}
2... d5 {[%clk 0:02:59.7]} 3. c4 {[%clk 0:02:57.4]} 3... e6 {[%clk 0:03:00.1]}
4. g3 {[%clk 0:02:57.1]} 4... Bb4+ {[%clk 0:02:57.4]} 5. Bd2 {[%clk 0:02:55.8]}
5... Be7 {[%clk 0:02:57.9]} 6. Bg2 {[%clk 0:02:54]} 6... O-O {[%clk 0:02:57.1]}
7. Qc2 {[%clk 0:02:53.5]} 7... c6 {[%clk 0:02:57]} 8. O-O {[%clk 0:02:52.7]}
8... Nbd7 {[%clk 0:02:57.2]} 9. Rd1 {[%clk 0:02:52.6]} 9... b6 {[%clk
0:02:57.3]} 10. b3 {[%clk 0:02:52.2]} 10... Bb7 {[%clk 0:02:55.3]} 11. Nc3
{[%clk 0:02:51.6]} 11... c5 {[%clk 0:02:48.7]} 12. cxd5 {[%clk 0:02:44.9]} 12...
exd5 {[%clk 0:02:45.2]} 13. dxc5 {[%clk 0:02:31.5]} 13... bxc5 {[%clk
0:02:34.5]} 14. Bf4 {[%clk 0:02:23.8]} 14... d4 {[%clk 0:02:30.2]} 15. Na4
{[%clk 0:02:18.8]} 15... Be4 {[%clk 0:02:26.9]} 16. Qd2 {[%clk 0:02:08.3]} 16...
Nb6 {[%clk 0:02:24.6]} 17. Qa5 {[%clk 0:01:51.3]} 17... Nxa4 {[%clk 0:02:00.7]}
18. Qxa4 {[%clk 0:01:50.6]} 18... Nd5 {[%clk 0:01:55.7]} 19. Bd2 {[%clk
0:01:43.4]} 19... Nb6 {[%clk 0:01:41.2]} 20. Qa5 {[%clk 0:01:38.4]} 20... Qd5
{[%clk 0:01:40.9]} 21. Rac1 {[%clk 0:01:33.2]} 21... Rfd8 {[%clk 0:01:32.6]} 22.
Ne1 {[%clk 0:01:32.1]} 22... Bxg2 {[%clk 0:01:29.2]} 23. Nxg2 {[%clk 0:01:31.6]}
23... Qe4 {[%clk 0:01:26.2]} 24. Qb5 {[%clk 0:01:19.7]} 24... Bf8 {[%clk
0:01:09.4]} 25. Ba5 {[%clk 0:01:17.2]} 25... Re8 {[%clk 0:01:05.5]} 26. Nf4
{[%clk 0:01:09.2]} 26... Bd6 {[%clk 0:00:56.3]} 27. Nd3 {[%clk 0:00:45]} 27...
Rab8 {[%clk 0:00:13.9]} 28. Nxc5 {[%clk 0:00:35.6]} 28... Qd5 {[%clk 0:00:14.1]}
29. a4 {[%clk 0:00:28.5]} 29... h6 {[%clk 0:00:13.1]} 30. Na6 {[%clk 0:00:26.8]}
30... Qxb5 {[%clk 0:00:08.1]} 31. axb5 {[%clk 0:00:26.9]} 31... Rbd8 {[%clk
0:00:05.5]} 32. Rxd4 {[%clk 0:00:25]} 32... Be5 {[%clk 0:00:06]} 33. Rxd8 {[%clk
0:00:24.2]} 33... Rxd8 {[%clk 0:00:06.9]} 34. Nb4 {[%clk 0:00:21.9]} 34... Bb2
{[%clk 0:00:05.6]} 35. Rb1 {[%clk 0:00:21.4]} 35... Bf6 {[%clk 0:00:05.5]} 36.
Nc6 {[%clk 0:00:21.1]} 36... Rd7 {[%clk 0:00:05.7]} 37. Nxa7 {[%clk 0:00:20.4]}
37... Nd5 {[%clk 0:00:04.1]} 38. Nc6 {[%clk 0:00:19.5]} 38... Rb7 {[%clk
0:00:04.3]} 39. Rd1 {[%clk 0:00:10.9]} 39... Rxb5 {[%clk 0:00:02.8]} 40. b4
{[%clk 0:00:11.2]} 40... Nc3 {[%clk 0:00:01.9]} 41. Re1 {[%clk 0:00:09.3]} 41...
Kh7 {[%clk 0:00:02.5]} 42. Kf1 {[%clk 0:00:08.7]} 42... Ne4 {[%clk 0:00:02.6]}
43. Rd1 {[%clk 0:00:08.3]} 43... Nc3 {[%clk 0:00:03]} 44. Rd3 {[%clk 0:00:08.3]}
44... Rh5 {[%clk 0:00:03.3]} 45. h4 {[%clk 0:00:07.5]} 45... Nb5 {[%clk
0:00:03.2]} 46. Rf3 {[%clk 0:00:06.4]} 46... Rd5 {[%clk 0:00:03.1]} 47. Kg2
{[%clk 0:00:06.3]} 47... Rd2 {[%clk 0:00:03.3]} 48. e3 {[%clk 0:00:06]} 48...
Rb2 {[%clk 0:00:03.9]} 49. Nd4 {[%clk 0:00:06]} 49... Nxd4 {[%clk 0:00:03.5]}
50. exd4 {[%clk 0:00:06.2]} 50... Bxd4 {[%clk 0:00:03.7]} 51. Rxf7 {[%clk
0:00:06.1]} 51... Bc3 {[%clk 0:00:04.2]} 52. Bb6 {[%clk 0:00:05.1]} 52... Rxb4
{[%clk 0:00:04]} 53. Be3 {[%clk 0:00:04.8]} 53... Bf6 {[%clk 0:00:04.3]} 54. Rd7
{[%clk 0:00:04.2]} 54... Rg4 {[%clk 0:00:04.5]} 55. Kf3 {[%clk 0:00:03.8]} 55...
Ra4 {[%clk 0:00:04.7]} 56. Kg2 {[%clk 0:00:04.1]} 56... Ra8 {[%clk 0:00:05.3]}
57. Kf3 {[%clk 0:00:04.3]} 57... Re8 {[%clk 0:00:05.8]} 58. Kg2 {[%clk
0:00:04.6]} 58... Rf8 {[%clk 0:00:06.4]} 59. Kf3 {[%clk 0:00:04.9]} 59... Bxh4+
{[%clk 0:00:06.8]} 60. Kg2 {[%clk 0:00:04.8]} 60... Bf6 {[%clk 0:00:07.7]} 61.
Rb7 {[%clk 0:00:04.7]} 61... Kg6 {[%clk 0:00:08.3]} 62. Rd7 {[%clk 0:00:04.7]}
62... h5 {[%clk 0:00:08.9]} 63. Rb7 {[%clk 0:00:04.1]} 63... Ra8 {[%clk
0:00:09.2]} 64. Rb5 {[%clk 0:00:03.7]} 64... Ra4 {[%clk 0:00:09.4]} 65. Rd5
{[%clk 0:00:03.2]} 65... Rc4 {[%clk 0:00:09.4]} 66. Rb5 {[%clk 0:00:03.2]} 66...
Re4 {[%clk 0:00:08.9]} 67. Rc5 {[%clk 0:00:02.9]} 67... Rg4 {[%clk 0:00:09]} 0-1

[Event "Betsys MČR v online bleskovém šachu 2021"]
[Site "Chess.com"]
[Date "2021.04.17"]
[Round "11"]
[White "Adam20032007"]
[Black "sachovybukowski"]
[Result "1-0"]
[WhiteElo "1880"]
[BlackElo "1950"]
[TimeControl "180+1"]
[EndTime "10:51:23 PDT"]
[Termination "Uživatel Adam20032007 zvítězil na čas"]

1. d4 {[%clk 0:03:00.9]} 1... c5 {[%clk 0:03:00.1]} 2. c3 {[%clk 0:03:00.4]}
2... g6 {[%clk 0:02:59.4]} 3. e3 {[%clk 0:02:58.7]} 3... Bg7 {[%clk 0:02:59.6]}
4. Bd3 {[%clk 0:02:58.2]} 4... Nf6 {[%clk 0:02:59.8]} 5. Nf3 {[%clk 0:02:57.9]}
5... O-O {[%clk 0:02:59.9]} 6. O-O {[%clk 0:02:58]} 6... d5 {[%clk 0:03:00.2]}
7. Nbd2 {[%clk 0:02:52.3]} 7... Nc6 {[%clk 0:03:00.2]} 8. dxc5 {[%clk
0:02:51.2]} 8... e5 {[%clk 0:02:59.6]} 9. e4 {[%clk 0:02:51.2]} 9... Qe7 {[%clk
0:02:56.1]} 10. b4 {[%clk 0:02:39.9]} 10... a5 {[%clk 0:02:37.2]} 11. Qb3 {[%clk
0:02:25.6]} 11... dxe4 {[%clk 0:02:33.5]} 12. Nxe4 {[%clk 0:02:25]} 12... axb4
{[%clk 0:02:29.4]} 13. cxb4 {[%clk 0:02:25]} 13... Be6 {[%clk 0:02:19.3]} 14.
Nxf6+ {[%clk 0:02:23.1]} 14... Bxf6 {[%clk 0:02:18.3]} 15. Bc4 {[%clk
0:02:23.3]} 15... Bxc4 {[%clk 0:02:10.3]} 16. Qxc4 {[%clk 0:02:23.4]} 16... e4
{[%clk 0:02:09.7]} 17. Bh6 {[%clk 0:01:40.7]} 17... Bxa1 {[%clk 0:01:45.8]} 18.
Bxf8 {[%clk 0:01:33.8]} 18... Qxf8 {[%clk 0:01:43.2]} 19. Rxa1 {[%clk
0:01:24.2]} 19... exf3 {[%clk 0:01:42.1]} 20. gxf3 {[%clk 0:01:22.9]} 20... Qe7
{[%clk 0:01:25.7]} 21. b5 {[%clk 0:01:20.6]} 21... Ne5 {[%clk 0:01:24.9]} 22.
Qe4 {[%clk 0:01:19.7]} 22... Qxc5 {[%clk 0:01:21.6]} 23. a4 {[%clk 0:01:16.9]}
23... Qc3 {[%clk 0:01:09.8]} 24. Rd1 {[%clk 0:01:07.2]} 24... Qxf3 {[%clk
0:01:06.1]} 25. Qxf3 {[%clk 0:01:00.7]} 25... Nxf3+ {[%clk 0:01:05.5]} 26. Kg2
{[%clk 0:01:01.2]} 26... Nh4+ {[%clk 0:01:03.6]} 27. Kh3 {[%clk 0:01:00]} 27...
Rxa4 {[%clk 0:01:03.3]} 28. Rd7 {[%clk 0:00:58.1]} 28... b6 {[%clk 0:00:51.6]}
29. Rb7 {[%clk 0:00:53.8]} 29... Nf5 {[%clk 0:00:50.7]} 30. Rxb6 {[%clk
0:00:53.7]} 30... Rb4 {[%clk 0:00:50.9]} 31. Rb8+ {[%clk 0:00:53.5]} 31... Kg7
{[%clk 0:00:47.7]} 32. b6 {[%clk 0:00:52.2]} 32... Kf6 {[%clk 0:00:42.1]} 33.
Kg2 {[%clk 0:00:45.5]} 33... Ne7 {[%clk 0:00:38.4]} 34. Kf3 {[%clk 0:00:38.8]}
34... Nd5 {[%clk 0:00:38.3]} 35. b7 {[%clk 0:00:38.2]} 35... Nc7 {[%clk
0:00:29.4]} 36. Ke3 {[%clk 0:00:13]} 36... Na6 {[%clk 0:00:25.3]} 37. Ra8 {[%clk
0:00:12.6]} 37... Rxb7 {[%clk 0:00:07.9]} 38. Rxa6+ {[%clk 0:00:12.4]} 38... Kg7
{[%clk 0:00:08.3]} 39. Rd6 {[%clk 0:00:11.6]} 39... Re7+ {[%clk 0:00:08.1]} 40.
Kf3 {[%clk 0:00:11.5]} 40... Re5 {[%clk 0:00:07.9]} 41. Kg3 {[%clk 0:00:11.4]}
41... Rf5 {[%clk 0:00:08]} 42. f4 {[%clk 0:00:11.3]} 42... Rf6 {[%clk
0:00:08.1]} 43. Rd5 {[%clk 0:00:11.2]} 43... Re6 {[%clk 0:00:07.9]} 44. Rd3
{[%clk 0:00:11.1]} 44... h5 {[%clk 0:00:08.2]} 45. h4 {[%clk 0:00:11.4]} 45...
Kf6 {[%clk 0:00:08.3]} 46. Rd4 {[%clk 0:00:11.4]} 46... Re3+ {[%clk 0:00:08]}
47. Kf2 {[%clk 0:00:10.6]} 47... Rh3 {[%clk 0:00:07.9]} 48. Kg2 {[%clk
0:00:08.5]} 48... Rxh4 {[%clk 0:00:07.2]} 49. Kg3 {[%clk 0:00:08.5]} 49... Rg4+
{[%clk 0:00:06.7]} 50. Kf3 {[%clk 0:00:08.3]} 50... Rg1 {[%clk 0:00:06.4]} 51.
Rd6+ {[%clk 0:00:08]} 51... Ke7 {[%clk 0:00:06.5]} 52. Rd3 {[%clk 0:00:06.9]}
52... Ra1 {[%clk 0:00:06.3]} 53. Re3+ {[%clk 0:00:06.6]} 53... Kf6 {[%clk
0:00:06.6]} 54. Rd3 {[%clk 0:00:06.2]} 54... Ra4 {[%clk 0:00:06.6]} 55. Rd6+
{[%clk 0:00:06.2]} 55... Kg7 {[%clk 0:00:06.6]} 56. Rd7 {[%clk 0:00:06]} 56...
Ra3+ {[%clk 0:00:06.6]} 57. Kg2 {[%clk 0:00:05.9]} 57... h4 {[%clk 0:00:06.1]}
58. Rd2 {[%clk 0:00:05.2]} 58... Kf6 {[%clk 0:00:05.5]} 59. Rd5 {[%clk
0:00:04.9]} 59... Rg3+ {[%clk 0:00:04.2]} 60. Kh2 {[%clk 0:00:04.5]} 60... Rc3
{[%clk 0:00:04.3]} 61. Kg2 {[%clk 0:00:04.2]} 61... Kg7 {[%clk 0:00:03.8]} 62.
Kf2 {[%clk 0:00:04.5]} 62... h3 {[%clk 0:00:02.4]} 63. Rd4 {[%clk 0:00:04]}
63... Kf6 {[%clk 0:00:01.7]} 64. Rd5 {[%clk 0:00:03.9]} 64... Ke6 {[%clk
0:00:02.1]} 65. Rb5 {[%clk 0:00:03.6]} 65... f6 {[%clk 0:00:01.4]} 66. Rb6+
{[%clk 0:00:03.6]} 66... Kf5 {[%clk 0:00:01.2]} 67. Rb4 {[%clk 0:00:03.6]} 1-0